bitfinex/quotes_SOLUSD_20240713
["timestamp","ask_amount","ask_price","bid_price","bid_amount"]
[1720867343670,1.03258394,140.17,140.1,7.7816981]
[1720867343999,1.03258394,140.17,140.11,1.42709646]
[1720867344182,1.03258394,140.17,140.11,46.42709646]
[1720867344597,1.03258394,140.17,140.11,45.0]
[1720867346590,1.03258394,140.17,140.11,45.9391201]
[1720867346797,1.03258394,140.17,140.11,46.42719914]
[1720867347102,1.03258394,140.17,140.11,45.0]
[1720867347679,1.03258394,140.17,140.08,16.5112]
[1720867347874,1.03258394,140.17,140.09,65.0]
[1720867348697,1.03258394,140.17,140.09,20.0]
[1720867349078,1.03258394,140.17,140.07,20.0]
[1720867349301,1.03258394,140.17,140.08,45.0]
[1720867349479,1.03258394,140.17,140.09,20.0]
[1720867350195,25.936,140.15,140.03,12.72139479]
[1720867350423,21.03258394,140.14,140.03,12.72139479]
[1720867350709,20.16458394,140.14,140.03,6.0626]
[1720867352027,20.16458394,140.14,140.04,20.0]
[1720867353001,20.16458394,140.14,140.05,45.0]
[1720867353430,10.0,140.13,140.05,45.0]
[1720867353614,21.03258394,140.12,140.05,45.0]
[1720867354422,32.1232,140.11,140.01,16.3268]
[1720867354624,1.03258394,140.1,140.01,16.3268]
[1720867354812,21.03258394,140.1,140.01,16.3268]
[1720867355215,21.03258394,140.1,139.99,6.0626]
[1720867355607,21.03258394,140.1,140.0,45.0]
[1720867356309,27.58496087,140.09,139.98,16.3268]
[1720867356513,22.68154481,140.08,139.99,1.42834301]
[1720867356729,1.03258394,140.07,139.99,1.42834301]
[1720867357430,1.03258394,140.07,139.98,16.3268]
[1720867358009,1.03258394,140.07,139.99,45.0]
[1720867359737,1.03258394,140.07,140.0,1.42822913]
[1720867359907,1.03258394,140.07,139.99,45.0]
[1720867361719,21.03258394,140.08,140.0,21.42805785]
[1720867361921,21.03258394,140.08,140.01,45.0]
[1720867362125,21.03258394,140.08,140.02,1.42795306]
[1720867362319,20.0,140.08,140.02,1.42795306]
[1720867362511,21.03258394,140.08,140.02,1.42795306]
[1720867363245,1.03258394,140.07,140.02,1.42795306]
[1720867363421,1.03258394,140.07,140.03,1.42804852]
[1720867364539,1.03258394,140.07,140.02,1.42805104]
[1720867366312,1.03258394,140.07,140.02,0.84193848]
[1720867366914,1.03258394,140.07,139.99,21.06638355]
[1720867368035,1.03258394,140.07,140.0,45.0]
[1720867368341,20.53258394,140.08,140.01,1.42807632]
[1720867368541,1.03258394,140.08,140.02,1.42790361]
[1720867368736,1.03258394,140.08,140.02,46.42790361]
[1720867369254,16.96858394,140.09,140.03,1.42792433]
[1720867369921,15.936,140.09,140.03,1.42792433]
[1720867370624,15.936,140.09,140.03,21.42792433]
[1720867370947,1.03258394,140.1,140.04,45.0]
[1720867371117,1.03258394,140.12,140.05,1.42776095]
[1720867371755,21.03258394,140.12,140.05,1.42776095]
[1720867372441,21.03258394,140.12,140.04,45.0]
[1720867375239,21.03258394,140.12,140.05,0.45232293]
[1720867375549,21.03258394,140.12,140.04,45.0]
[1720867376552,21.03258394,140.12,140.05,1.42781437]
[1720867377058,21.03258394,140.12,140.04,45.0]
[1720867379156,21.03258394,140.12,140.05,1.42781747]
[1720867379830,1.03258394,140.12,140.05,1.42781747]
[1720867380033,1.03258394,140.12,140.05,21.42781747]
[1720867380234,1.03258394,140.12,140.06,45.0]
[1720867380455,15.2932,140.13,140.07,1.42746614]
[1720867380456,16.32578394,140.13,140.07,1.42746614]
[1720867380627,16.32578394,140.13,140.08,1.42742829]
[1720867381547,15.2932,140.13,140.08,1.42742829]
[1720867381727,15.2932,140.13,140.09,1.42743996]
[1720867381935,15.2932,140.13,140.07,1.42743996]
[1720867382159,15.2932,140.13,140.08,1.4274481]
[1720867384561,15.2932,140.13,140.07,20.0]
[1720867384739,15.2932,140.13,140.08,45.0]
[1720867385574,17.42312213,140.19,140.09,21.42725389]
[1720867385575,15.2932,140.17,140.09,21.42725389]
[1720867385748,1.03258394,140.16,140.1,45.0]
[1720867389270,16.32578394,140.17,140.11,1.42722013]
[1720867389448,16.32578394,140.17,140.11,21.42722013]
[1720867389765,16.32578394,140.17,140.12,45.0]
[1720867389949,16.32578394,140.17,140.13,1.42700738]
[1720867390148,16.32578394,140.17,140.12,45.0]
[1720867390463,15.2932,140.17,140.13,1.42700726]
[1720867391152,1.03258394,140.16,140.12,45.0]
[1720867391337,16.32578394,140.17,140.12,45.0]
[1720867391543,15.9246,140.21,140.13,1.42701305]
[1720867391743,15.9246,140.21,140.13,21.42701305]
[1720867391944,1.03258394,140.2,140.14,45.0]
[1720867393380,1.03258394,140.2,140.15,1.42682702]
[1720867393668,1.03258394,140.2,140.14,45.0]
[1720867394473,1.03258394,140.2,140.15,45.0]
[1720867394862,1.03258394,140.2,140.14,45.0]
[1720867395170,1.03258394,140.2,140.15,1.42685314]
[1720867396670,1.03258394,140.2,140.14,45.0]
[1720867396871,1.03258394,140.2,140.09,6.4312]
[1720867397174,31.03258394,140.2,140.09,6.4312]
[1720867397372,21.03258394,140.2,140.1,1.42721112]
[1720867398161,21.03258394,140.2,140.1,46.42721112]
[1720867398361,21.03258394,140.2,140.11,20.0]
[1720867398562,21.03258394,140.2,140.12,45.0]
[1720867398764,22.68154481,140.2,140.12,45.0]
[1720867399175,32.68154481,140.2,140.12,45.0]
[1720867399378,22.68154481,140.2,140.12,46.42675277]
[1720867399875,1.64896087,140.19,140.12,45.0]
[1720867400057,1.03258394,140.18,140.12,45.0]
[1720867400258,1.03258394,140.17,140.12,45.0]
[1720867400453,15.9246,140.16,140.12,45.0]
[1720867400658,1.03258394,140.15,140.12,45.0]
[1720867403082,1.03258394,140.15,140.07,15.041]
[1720867403250,1.03258394,140.14,140.08,45.0]
[1720867403454,1.03258394,140.14,140.07,45.0]
[1720867404277,1.03258394,140.13,140.07,45.0]
[1720867404576,1.03258394,140.15,140.08,20.0]
[1720867404776,1.03258394,140.14,140.09,45.0]
[1720867406078,1.03258394,140.14,140.04,24.05588278]
[1720867406280,15.9246,140.12,140.04,9.01488278]
[1720867406482,1.03258394,140.11,140.03,261.7312]
[1720867406687,1.03258394,140.1,140.03,261.7312]
[1720867407686,1.03258394,140.11,140.03,261.7312]
[1720867407863,1.03258394,140.1,140.04,45.0]
[1720867408686,16.1771,140.09,140.03,255.3]
[1720867408866,1.03258394,140.08,140.01,9.01488278]
[1720867409067,1.03258394,140.08,140.02,20.0]
[1720867409558,16.1771,140.09,140.03,1.42794465]
[1720867409996,1.03258394,140.08,140.02,20.0]
[1720867410164,1.03258394,140.08,140.03,45.0]
[1720867412884,1.03258394,140.07,140.03,45.0]
[1720867413188,1.03258394,140.07,139.98,28.79597425]
[1720867413359,1.03258394,140.07,139.99,20.0]
[1720867413565,1.03258394,140.07,140.0,0.43915485]
[1720867413766,1.03258394,140.07,139.99,20.0]
[1720867414088,1.03258394,140.08,140.0,1.42811646]
[1720867414269,1.03258394,140.08,140.0,45.0]
[1720867414471,1.03258394,140.08,140.01,20.0]
[1720867414679,7.52468394,140.08,140.02,45.0]
[1720867414985,1.03258394,140.07,140.01,20.0]
[1720867415288,1.03258394,140.07,140.02,1.42816577]
[1720867415523,1.03258394,140.07,139.99,20.0]
[1720867416597,1.03258394,140.07,140.0,45.0]
[1720867416898,1.03258394,140.07,140.01,20.0]
[1720867417192,1.03258394,140.07,140.0,45.0]
[1720867417395,1.03258394,140.07,139.99,45.0]
[1720867417700,1.03258394,140.07,140.0,20.0]
[1720867417882,1.03258394,140.07,140.01,45.0]
[1720867418276,1.03258394,140.07,139.99,1.42832797]
[1720867418488,21.03258394,140.07,139.99,1.42832797]
[1720867418798,21.03258394,140.07,139.97,9.89093498]
[1720867419597,21.03258394,140.07,139.98,1.42823419]
[1720867419900,21.03258394,140.07,139.98,20.0]
[1720867420394,21.03258394,140.07,139.99,1.42826278]
[1720867420693,21.03258394,140.07,139.98,20.0]
[1720867420896,21.03258394,140.07,139.99,45.0]
[1720867421275,21.03258394,140.07,139.99,46.42836876]
[1720867425502,21.03258394,140.07,140.0,1.42836355]
[1720867425894,16.1771,140.06,139.99,45.0]
[1720867426098,1.03258394,140.05,139.99,45.0]
[1720867426283,1.03258394,140.04,139.99,45.0]
[1720867426589,1.03258394,140.04,140.0,1.42835329]
[1720867427406,1.03258394,140.05,140.0,1.42835329]
[1720867427787,17.20968394,140.06,140.0,1.42835329]
[1720867433492,17.20968394,140.06,139.99,45.0]
[1720867434582,17.20968394,140.06,140.0,1.42821006]
[1720867434977,16.1771,140.06,140.0,1.42821006]
[1720867435181,16.1771,140.06,140.0,21.42821006]
[1720867435378,16.1771,140.06,140.01,45.0]
[1720867435596,16.1771,140.06,140.02,1.42797205]
[1720867436196,16.1771,140.06,140.01,45.0]
[1720867436404,16.1771,140.06,140.02,1.42812215]
[1720867436906,6.4921,140.08,140.02,1.42812215]
[1720867437203,15.2314,140.09,140.02,1.42812215]
[1720867439082,15.2314,140.09,140.01,45.0]
[1720867439322,1.03258394,140.08,140.01,45.0]
[1720867440388,15.2314,140.09,140.01,45.0]
[1720867440611,15.2314,140.09,140.02,1.4278141]
[1720867440818,1.03258394,140.08,140.01,45.0]
[1720867441191,15.2314,140.09,140.02,1.42786826]
[1720867441593,15.2314,140.09,140.01,45.0]
[1720867441916,1.03258394,140.08,140.01,45.0]
[1720867442088,1.03258394,140.08,140.02,1.42788623]
[1720867443023,15.2314,140.06,139.95,24.67802548]
[1720867443228,1.03258394,140.05,139.95,24.67802548]
[1720867443903,1.03258394,140.05,139.98,1.42830921]
[1720867444506,1.03258394,140.05,139.98,1.37536504]
[1720867444717,16.26398394,140.06,139.98,1.37536504]
[1720867445293,16.26398394,140.06,139.98,20.0]
[1720867445505,16.26398394,140.06,139.99,46.42820373]
[1720867446429,16.26398394,140.06,139.99,45.0]
[1720867447839,16.26398394,140.06,140.0,1.42830096]
[1720867448507,16.26398394,140.06,139.99,45.0]
[1720867448716,16.26398394,140.06,140.0,1.42829647]
[1720867449007,16.26398394,140.06,139.99,45.0]
[1720867451818,16.26398394,140.06,139.99,46.42840881]
[1720867453037,16.26398394,140.06,139.99,45.0]
[1720867454025,15.5435,140.03,139.97,0.8760522]
[1720867454223,1.03258394,140.02,139.97,0.8760522]
[1720867455115,15.5435,140.03,139.97,0.8760522]
[1720867455621,16.57608394,140.03,139.97,0.8760522]
[1720867456008,15.5435,140.03,139.97,0.8760522]
[1720867456536,16.57608394,140.03,139.97,0.8760522]
[1720867457712,16.57608394,140.03,139.98,1.39902398]
[1720867459408,16.57608394,140.03,139.97,0.8760522]
[1720867459824,16.57608394,140.03,139.97,20.8760522]
[1720867460029,16.57608394,140.03,139.98,45.0]
[1720867462507,16.57608394,140.03,139.99,1.42848929]
[1720867463735,16.57608394,140.03,139.98,45.0]
[1720867464530,16.57608394,140.03,139.99,1.42828418]
[1720867464733,16.57608394,140.03,139.98,45.0]
[1720867465030,16.57608394,140.03,139.99,1.42851859]
[1720867465419,16.57608394,140.03,139.98,46.4284953]
[1720867465817,16.57608394,140.03,139.99,1.42839325]
[1720867466017,15.5435,140.03,139.99,45.0]
[1720867467240,15.5435,140.06,139.99,45.0]
[1720867467442,15.5435,140.06,140.0,1.42772204]
[1720867469135,1.03258394,140.05,139.99,45.0]
[1720867469340,1.03258394,140.05,139.98,45.0]
[1720867469522,1.03258394,140.05,139.97,7.3028522]
[1720867469721,1.03258394,140.05,139.98,20.0]
[1720867470134,1.03258394,140.05,139.99,1.1889932]
[1720867470736,1.03258394,140.05,139.98,20.0]
[1720867470938,16.57608394,140.06,139.99,46.42815978]
[1720867471437,15.5435,140.06,139.99,46.42815978]
[1720867471819,15.5435,140.06,139.99,45.0]
[1720867472541,1.03258394,140.05,139.99,45.0]
[1720867474442,1.03258394,140.05,140.0,1.42830196]
[1720867474945,16.57608394,140.06,140.0,1.42830196]
[1720867475559,16.57608394,140.06,140.0,1.42815483]
[1720867475560,15.5435,140.06,140.0,1.42815483]
[1720867475844,15.5435,140.06,139.99,45.0]
[1720867477346,1.03258394,140.05,139.99,45.0]
[1720867478340,20.30500153,140.1,140.0,20.0]
[1720867478341,15.4975,140.09,140.0,20.0]
[1720867478519,16.53008394,140.09,140.01,45.0]
[1720867478723,16.53008394,140.09,140.02,21.42791676]
[1720867478923,16.53008394,140.09,140.03,45.0]
[1720867479124,16.53008394,140.09,140.04,1.4279145]
[1720867479441,1.03258394,140.08,140.03,46.42791431]
[1720867479626,1.03258394,140.08,140.03,1.42791431]
[1720867481740,21.5001,140.07,140.03,1.42791431]
[1720867483647,15.4975,140.07,140.03,1.42791431]
[1720867487942,15.4975,140.07,140.02,45.0]
[1720867488242,15.4975,140.07,140.03,0.54554663]
[1720867488960,15.4975,140.07,140.02,45.0]
[1720867489466,1.03258394,140.06,140.02,45.0]
[1720867489647,1.03258394,140.06,140.01,9.51550794]
[1720867490453,1.03258394,140.06,140.02,1.4282355]
[1720867491559,1.03258394,140.06,140.03,1.42819357]
[1720867491747,15.4975,140.07,140.03,1.42819357]
[1720867492668,15.4975,140.07,140.02,45.0]
[1720867493963,1.03258394,140.06,140.01,9.51550794]
[1720867494166,1.03258394,140.06,139.97,17.32150109]
[1720867494343,1.03258394,140.06,139.99,9.51550794]
[1720867495848,1.03258394,140.06,140.0,46.42818904]
[1720867496463,1.03258394,140.06,140.0,1.42818904]
[1720867496669,7.61508394,140.06,139.98,20.0]
[1720867497457,7.61508394,140.06,139.97,11.76263988]
[1720867497838,7.61508394,140.06,139.98,45.0]
[1720867498967,1.03258394,140.06,139.99,6.4101]
[1720867499171,1.03258394,140.1,140.0,8.83927342]
[1720867499351,1.03258394,140.13,140.01,66.4277479]
[1720867499557,1.03258394,140.13,140.02,8.83927342]
[1720867499748,1.03258394,140.13,140.03,65.0]
[1720867500366,1.03258394,140.13,140.03,73.83927342]
[1720867500556,1.03258394,140.13,140.04,0.37063728]
[1720867500756,1.03258394,140.13,140.03,73.83927342]
[1720867502276,1.03258394,140.13,140.04,1.42779102]
[1720867502875,6.5825,140.11,140.03,8.83927342]
[1720867503080,17.52488394,140.1,139.99,6.4101]
[1720867503742,17.52488394,140.1,139.99,14.24486234]
[1720867504348,17.52488394,140.1,140.0,65.0]
[1720867505376,17.52488394,140.1,139.99,7.83476234]
[1720867505377,27.52488394,140.1,139.99,7.83476234]
[1720867505962,27.52488394,140.1,140.0,1.42823317]
[1720867507371,10.0,140.08,140.0,1.42823317]
[1720867507558,1.03258394,140.07,140.0,1.42823317]
[1720867510454,1.03258394,140.09,140.0,46.42823317]
[1720867511559,17.52488394,140.1,140.01,26.499]
[1720867511779,17.52488394,140.1,140.02,45.0]
[1720867512168,17.52488394,140.1,140.03,1.14318455]
[1720867513096,16.4923,140.1,140.03,1.14318455]
[1720867513282,17.52488394,140.1,140.03,21.14318455]
[1720867513455,17.52488394,140.1,140.04,45.0]
[1720867513651,17.52488394,140.1,140.05,1.42772777]
[1720867516075,16.4923,140.1,140.05,1.42772777]
[1720867516263,16.4923,140.1,140.04,45.0]
[1720867516467,16.4923,140.1,140.05,1.42756823]
[1720867517668,16.4923,140.1,140.0,7.83476234]
[1720867517871,16.4923,140.1,140.01,1.42786774]
[1720867518189,17.52488394,140.1,140.01,9.26263008]
[1720867518370,17.52488394,140.1,140.01,7.83476234]
[1720867518690,17.52488394,140.1,140.02,1.42777674]
[1720867519068,17.52488394,140.1,140.02,46.42777674]
[1720867519761,17.52488394,140.1,140.03,20.0]
[1720867519963,17.52488394,140.1,140.04,46.42757283]
[1720867520165,17.52488394,140.1,140.05,1.42770212]
[1720867520359,16.4923,140.1,140.05,1.42770212]
[1720867520644,17.52488394,140.1,140.05,1.42770212]
[1720867521983,17.52488394,140.1,140.04,45.0]
[1720867522165,17.52488394,140.1,140.03,20.0]
[1720867522364,10.0,140.09,140.01,7.83476234]
[1720867522563,1.03258394,140.08,139.97,15.20981454]
[1720867522799,1.03258394,140.07,139.98,1.4282734]
[1720867523168,1.03258394,140.07,139.98,1.42814981]
[1720867523669,1.03258394,140.06,139.98,1.42814981]
[1720867523985,26.4923,140.1,139.98,1.42814981]
[1720867524186,26.4923,140.1,139.98,46.42814981]
[1720867524599,16.4923,140.1,139.99,20.0]
[1720867524898,1.65613861,140.09,140.0,45.0]
[1720867525100,1.03258394,140.08,140.0,45.0]
[1720867525278,1.03258394,140.08,140.01,1.42808934]
[1720867525478,1.03258394,140.08,140.02,1.42813993]
[1720867526408,1.03258394,140.08,140.0,45.0]
[1720867530281,1.03258394,140.08,139.97,15.20981454]
[1720867530282,15.789,140.07,139.97,8.71081454]
[1720867530498,6.4307,140.05,139.98,20.0]
[1720867531082,6.4307,140.05,139.97,0.8760522]
[1720867532011,6.4307,140.05,139.97,20.8760522]
[1720867532191,6.4307,140.05,139.98,45.0]
[1720867535410,6.4307,140.05,139.99,1.42820439]
[1720867538119,15.789,140.07,139.98,45.0]
[1720867540032,1.03258394,140.06,139.98,45.0]
[1720867546843,6.4307,140.05,139.98,45.0]
[1720867547049,1.03258394,140.04,139.98,45.0]
[1720867547612,1.03258394,140.04,139.99,1.42841435]
[1720867554437,7.46328394,140.05,139.99,1.42841435]
[1720867554642,7.46328394,140.05,139.98,45.0]
[1720867554857,6.4307,140.05,139.98,45.0]
[1720867555426,6.4307,140.05,139.99,1.42817781]
[1720867556141,15.789,140.07,139.99,1.42817781]
[1720867557549,1.03258394,140.06,139.98,45.0]
[1720867559346,1.03258394,140.06,139.99,1.42810103]
[1720867560156,1.03258394,140.06,139.98,45.0]
[1720867560752,1.03258394,140.06,139.99,1.42810013]
[1720867561248,1.03258394,140.06,139.98,45.0]
[1720867561449,1.03258394,140.06,140.0,1.42830628]
[1720867561648,1.03258394,140.06,139.98,45.0]
[1720867561953,15.0412,140.04,139.97,0.8760522]
[1720867562160,1.03258394,140.03,139.97,0.8760522]
[1720867563429,1.03258394,140.03,139.98,1.42839668]
[1720867563642,16.07378394,140.04,139.97,0.8760522]
[1720867563845,16.07378394,140.04,139.97,2.30445613]
[1720867564846,16.07378394,140.04,139.97,0.8760522]
[1720867565045,16.07378394,140.04,139.98,1.42856296]
[1720867566354,16.07378394,140.04,139.97,0.8760522]
[1720867566654,16.07378394,140.04,139.97,2.3046147]
[1720867568731,26.07378394,140.04,139.97,0.8760522]
[1720867568934,15.9592,140.03,139.97,0.8760522]
[1720867569158,1.03258394,140.02,139.97,0.8760522]
[1720867569456,1.03258394,140.01,139.97,0.8760522]
[1720867570457,1.03258394,140.02,139.97,0.8760522]
[1720867570628,1.03258394,140.01,139.97,0.8760522]
[1720867571731,1.03258394,140.02,139.97,0.8760522]
[1720867571930,1.03258394,140.01,139.97,0.8760522]
[1720867572360,22.2484,140.0,139.97,0.8760522]
[1720867572559,1.03258394,139.99,139.97,0.8760522]
[1720867575052,15.9592,140.0,139.97,0.8760522]
[1720867581937,1.03258394,139.99,139.97,0.8760522]
[1720867590074,7.52878394,139.99,139.97,0.8760522]
[1720867590470,1.03258394,139.98,139.97,0.8760522]
[1720867592068,11.03258394,139.98,139.97,0.8760522]
[1720867592279,26.50388394,139.98,139.9,1.42908991]
[1720867592581,26.50388394,139.98,139.87,1.42919664]
[1720867593465,26.50388394,139.98,139.87,21.42919664]
[1720867593649,26.50388394,139.98,139.87,66.42919664]
[1720867595477,20.0,139.97,139.86,7.401429]
[1720867595769,1.03258394,139.96,139.87,1.42945814]
[1720867595979,1.03258394,139.95,139.87,1.42945814]
[1720867596152,1.03258394,139.95,139.86,1.42933346]
[1720867597163,1.03258394,139.95,139.86,46.42933346]
[1720867597968,1.03258394,139.95,139.86,45.0]
[1720867598179,1.03258394,139.95,139.87,1.42955551]
[1720867598676,21.9675,139.94,139.87,1.42955551]
[1720867598860,21.9675,139.94,139.84,20.0]
[1720867598861,1.03258394,139.93,139.84,20.0]
[1720867599060,1.03258394,139.92,139.84,20.0]
[1720867599374,1.03258394,139.93,139.84,20.0]
[1720867600085,1.03258394,139.93,139.85,45.0]
[1720867600586,1.03258394,139.92,139.84,20.0]
[1720867600760,1.03258394,139.92,139.85,1.42965019]
[1720867601168,1.03258394,139.93,139.84,20.0]
[1720867601474,23.62363861,139.94,139.85,0.63403223]
[1720867601475,1.03258394,139.92,139.85,0.63403223]
[1720867601685,23.62363861,139.94,139.84,20.0]
[1720867601855,23.62363861,139.94,139.85,45.0]
[1720867602051,23.62363861,139.94,139.86,0.43658085]
[1720867602695,1.03258394,139.93,139.85,45.0]
[1720867602977,1.03258394,139.93,139.86,1.42962643]
[1720867603197,1.03258394,139.93,139.85,45.0]
[1720867603392,1.03258394,139.93,139.87,1.42959776]
[1720867604180,1.03258394,139.93,139.85,45.0]
[1720867604388,1.03258394,139.93,139.86,1.42951242]
[1720867604558,1.03258394,139.93,139.85,45.0]
[1720867604885,1.03258394,139.93,139.86,1.42951539]
[1720867605059,1.03258394,139.93,139.85,45.0]
[1720867605265,23.62363861,139.94,139.86,1.42950405]
[1720867605759,17.12743861,139.94,139.86,8.08340405]
[1720867605959,15.4713,139.94,139.87,45.0]
[1720867606567,1.03258394,139.96,139.88,1.42922246]
[1720867607583,1.03258394,139.96,139.87,45.0]
[1720867608164,1.03258394,139.95,139.87,45.0]
[1720867608682,1.03258394,139.95,139.88,1.42671636]
[1720867609582,16.5501,139.94,139.88,1.42671636]
[1720867609784,1.03258394,139.93,139.84,20.0]
[1720867609958,1.03258394,139.93,139.85,46.42950386]
[1720867610158,1.03258394,139.93,139.86,21.42949945]
[1720867610387,1.03258394,139.93,139.87,45.0]
[1720867610588,1.03258394,139.93,139.88,1.42949923]
[1720867611890,1.03258394,139.93,139.87,45.0]
[1720867612392,1.03258394,139.93,139.88,1.42950111]
[1720867612773,1.03258394,139.93,139.87,45.0]
[1720867613089,1.03258394,139.93,139.86,20.0]
[1720867613293,1.03258394,139.92,139.84,20.0]
[1720867613478,16.5501,139.94,139.85,45.0]
[1720867614488,1.03258394,139.93,139.85,45.0]
[1720867614884,7.17598394,139.93,139.83,6.99698456]
[1720867615566,7.17598394,139.93,139.84,0.64321166]
[1720867616271,7.17598394,139.93,139.84,1.42972078]
[1720867616474,36.5501,139.92,139.82,0.8760522]
[1720867616773,1.03258394,139.91,139.83,0.36360568]
[1720867617185,1.03258394,139.91,139.83,0.97537703]
[1720867617396,1.03258394,139.91,139.82,0.8760522]
[1720867617593,1.03258394,139.91,139.83,0.96871435]
[1720867617795,1.03258394,139.91,139.83,1.42982462]
[1720867620599,46.03258394,139.91,139.83,1.42982462]
[1720867620795,1.03258394,139.91,139.83,1.42982462]
[1720867621474,22.6935,139.86,139.82,0.8760522]
[1720867621676,1.03258394,139.85,139.82,0.8760522]
[1720867621876,22.6935,139.86,139.82,0.8760522]
[1720867622087,16.5501,139.86,139.82,0.8760522]
[1720867623192,1.03258394,139.85,139.82,0.8760522]
[1720867623380,16.5501,139.86,139.82,0.8760522]
[1720867623973,1.03258394,139.85,139.82,0.8760522]
[1720867627373,11.03258394,139.85,139.82,0.8760522]
[1720867627574,1.03258394,139.85,139.82,0.8760522]
[1720867628013,6.281,139.84,139.82,0.8760522]
[1720867628297,1.03258394,139.83,139.82,0.8760522]
[1720867632284,1.03258394,139.84,139.82,0.8760522]
[1720867633083,1.03258394,139.85,139.82,0.8760522]
[1720867637608,11.03258394,139.85,139.82,0.8760522]
[1720867638105,1.03258394,139.85,139.82,0.8760522]
[1720867638296,56.03258394,139.85,139.82,0.8760522]
[1720867639108,42.3839,139.84,139.77,0.04239412]
[1720867639288,1.03258394,139.83,139.77,0.04239412]
[1720867639495,1.03258394,139.82,139.77,0.04239412]
[1720867640199,11.03258394,139.82,139.77,0.04239412]
[1720867640587,11.03258394,139.82,139.71,28.03335609]
[1720867641001,11.03258394,139.82,139.72,0.89513898]
[1720867641600,45.0,139.81,139.72,21.43106983]
[1720867641890,1.03258394,139.8,139.72,16.43106983]
[1720867642089,1.03258394,139.79,139.72,1.43106983]
[1720867643013,1.03258394,139.81,139.72,1.43106983]
[1720867643192,1.03258394,139.81,139.72,46.43106983]
[1720867644096,1.03258394,139.82,139.72,46.43106983]
[1720867644298,1.03258394,139.85,139.74,22.7211]
[1720867644482,1.03258394,139.84,139.75,65.0]
[1720867644690,1.03258394,139.87,139.76,0.89239497]
[1720867645217,10.0,139.86,139.75,65.0]
[1720867645514,1.03258394,139.85,139.75,65.0]
[1720867646687,1.03258394,139.85,139.78,16.4897]
[1720867646893,1.03258394,139.85,139.79,46.42823325]
[1720867647692,1.03258394,139.86,139.79,46.42823325]
[1720867647891,7.41791905,139.87,139.79,46.42823325]
[1720867648089,7.41791905,139.87,139.8,20.0]
[1720867648313,7.41791905,139.87,139.81,46.43001052]
[1720867648819,7.41791905,139.87,139.82,6.5208]
[1720867648997,7.41791905,139.87,139.83,1.42991766]
[1720867651808,1.03258394,139.86,139.82,7.95081993]
[1720867652015,1.03258394,139.86,139.82,6.5208]
[1720867653123,10.0,139.85,139.78,23.0105]
[1720867653324,1.03258394,139.84,139.78,23.0105]
[1720867654121,1.03258394,139.84,139.74,21.7417]
[1720867654298,1.03258394,139.84,139.75,1.43069886]
[1720867655308,1.03258394,139.84,139.74,21.7417]
[1720867655309,10.0,139.83,139.74,21.7417]
[1720867655493,1.03258394,139.82,139.74,23.17234938]
[1720867655820,1.03258394,139.82,139.75,1.43090346]
[1720867656707,10.0,139.8,139.69,6.26986197]
[1720867656914,1.03258394,139.79,139.69,6.26986197]
[1720867657604,2.68872255,139.79,139.69,6.26986197]
[1720867659011,1.03258394,139.78,139.7,45.0]
[1720867659329,2.68872255,139.79,139.71,1.43094043]
[1720867660220,2.68872255,139.79,139.71,1.43095415]
[1720867660417,1.65613861,139.79,139.71,1.43095415]
[1720867660812,1.03258394,139.78,139.71,1.43095415]
[1720867662023,2.68872255,139.79,139.71,1.43095415]
[1720867662707,24.03771218,139.81,139.71,1.43095415]
[1720867662908,1.03258394,139.83,139.71,1.43095415]
[1720867663111,1.03258394,139.82,139.71,21.43095415]
[1720867663410,1.03258394,139.82,139.72,45.0]
[1720867663619,1.03258394,139.82,139.73,1.43088953]
[1720867663825,1.03258394,139.82,139.74,1.43088882]
[1720867665714,1.03258394,139.82,139.73,1.43088891]
[1720867666041,46.03258394,139.82,139.74,1.43095015]
[1720867666224,10.0,139.8,139.73,1.43095015]
[1720867666429,1.03258394,139.79,139.69,6.26986197]
[1720867667210,1.03258394,139.8,139.7,1.43108741]
[1720867667408,21.03258394,139.83,139.7,1.43108741]
[1720867667714,1.03258394,139.82,139.7,21.43108741]
[1720867668129,1.03258394,139.82,139.71,45.0]
[1720867668328,1.03258394,139.82,139.72,1.43082623]
[1720867669639,10.0,139.81,139.72,1.43082623]
[1720867669837,1.03258394,139.8,139.72,1.43082623]
[1720867670035,1.03258394,139.79,139.72,1.43082623]
[1720867671326,1.03258394,139.79,139.73,1.43110387]
[1720867671533,15.5469,139.78,139.71,1.4311753]